[Event "Titled Tuesday Blitz March 08 Early 2022"]
[White "Vlassov, Nikolai"]
[Black "Tari, Aryan"]
[WhiteFideId "4103360"]
[BlackFideId "1510045"]
[WhiteElo "2407"]
[BlackElo "2567"]
[Result "1-0"]
[Round "04"]
[TimeControl "180+1"]
[Date "2022.03.08"]
[WhiteClock "0:00:10"]
[BlackClock "0:00:13"]

1. e4 {[%clk 0:03:00]}  c6 {[%clk 0:02:53]} 2. d4 {[%clk 0:03:00]}  d5 {[%clk 0:02:54]} 3. e5 {[%clk 0:03:01]}  Bf5 {[%clk 0:02:47]} 4. Nc3 {[%clk 0:03:01]}  e6 {[%clk 0:02:43]} 5. g4 {[%clk 0:03:01]}  Bg6 {[%clk 0:02:43]} 6. Nge2 {[%clk 0:03:02]}  c5 {[%clk 0:02:41]} 7. Be3 {[%clk 0:03:01]}  Nc6 {[%clk 0:02:38]} 8. dxc5 {[%clk 0:03:01]}  h5 {[%clk 0:02:32]} 9. Nf4 {[%clk 0:02:51]}  Bh7 {[%clk 0:02:32]} 10. Bb5 {[%clk 0:02:34]}  hxg4 {[%clk 0:02:31]} 11. Qxg4 {[%clk 0:02:33]}  Nh6 {[%clk 0:02:31]} 12. Qg2 {[%clk 0:02:26]}  Nf5 {[%clk 0:02:28]} 13. O-O-O {[%clk 0:02:22]}  Qa5 {[%clk 0:02:13]} 14. Kb1 {[%clk 0:02:12]}  O-O-O {[%clk 0:02:10]} 15. Bxc6 {[%clk 0:02:11]}  bxc6 {[%clk 0:02:11]} 16. Nce2 {[%clk 0:02:05]}  Nxe3 {[%clk 0:02:04]} 17. fxe3 {[%clk 0:02:05]}  Be4 {[%clk 0:02:03]} 18. Qg3 {[%clk 0:01:57]}  Bxh1 {[%clk 0:01:55]} 19. Rxh1 {[%clk 0:01:56]}  Qxc5 {[%clk 0:01:50]} 20. Nd4 {[%clk 0:01:56]}  Qb6 {[%clk 0:01:48]} 21. Rd1 {[%clk 0:01:49]}  g6 {[%clk 0:01:48]} 22. Rd3 {[%clk 0:01:48]}  c5 {[%clk 0:01:45]} 23. Rb3 {[%clk 0:01:46]}  Qa6 {[%clk 0:01:44]} 24. Nde2 {[%clk 0:01:31]}  c4 {[%clk 0:01:44]} 25. Rc3 {[%clk 0:01:28]}  Bb4 {[%clk 0:01:45]} 26. a3 {[%clk 0:01:25]}  Bxc3 {[%clk 0:01:42]} 27. Nxc3 {[%clk 0:01:25]}  d4 {[%clk 0:01:37]} 28. exd4 {[%clk 0:01:24]}  Rxd4 {[%clk 0:01:38]} 29. Qe3 {[%clk 0:01:14]}  Rhd8 {[%clk 0:01:37]} 30. Nfe2 {[%clk 0:01:04]}  R4d7 {[%clk 0:01:35]} 31. Ne4 {[%clk 0:01:01]}  Qb6 {[%clk 0:01:29]} 32. Qc3 {[%clk 0:00:58]}  Rc7 {[%clk 0:01:22]} 33. Nd6+ {[%clk 0:00:45]}  Kb8 {[%clk 0:01:18]} 34. Nd4 {[%clk 0:00:43]}  Qc5 {[%clk 0:01:11]} 35. Ka2 {[%clk 0:00:36]}  Rcd7 {[%clk 0:01:01]} 36. h4 {[%clk 0:00:22]}  Rxd6 {[%clk 0:01:01]} 37. exd6 {[%clk 0:00:22]}  Rxd6 {[%clk 0:01:02]} 38. Nf3 {[%clk 0:00:19]}  Kb7 {[%clk 0:00:59]} 39. Qf6 {[%clk 0:00:17]}  Rd7 {[%clk 0:00:52]} 40. Ne5 {[%clk 0:00:17]}  Rc7 {[%clk 0:00:52]} 41. Nxf7 {[%clk 0:00:16]}  Qe7 {[%clk 0:00:34]} 42. Qf3+ {[%clk 0:00:10]}  Ka6 {[%clk 0:00:34]} 43. Ne5 {[%clk 0:00:10]}  Qd6 {[%clk 0:00:30]} 44. Nxg6 {[%clk 0:00:10]}  c3 {[%clk 0:00:31]} 45. b3 {[%clk 0:00:08]}  Qd2 {[%clk 0:00:22]} 46. Qe4 {[%clk 0:00:08]}  Qd5 {[%clk 0:00:20]} 47. Qa4+ {[%clk 0:00:07]}  Kb6 {[%clk 0:00:19]} 48. Qb4+ {[%clk 0:00:08]}  Qb5 {[%clk 0:00:19]} 49. Qd6+ {[%clk 0:00:06]}  Qc6 {[%clk 0:00:19]} 50. Qb4+ {[%clk 0:00:06]}  Ka6 {[%clk 0:00:19]} 51. Ne5 {[%clk 0:00:06]}  Qc5 {[%clk 0:00:18]} 52. Qa4+ {[%clk 0:00:06]}  Kb7 {[%clk 0:00:19]} 53. Nd3 {[%clk 0:00:03]}  Qd6 {[%clk 0:00:15]} 54. Qb5+ {[%clk 0:00:03]}  Qb6 {[%clk 0:00:15]} 55. Qe5 {[%clk 0:00:03]}  Rd7 {[%clk 0:00:14]} 56. Nc5+ {[%clk 0:00:03]}  Kc6 {[%clk 0:00:14]} 57. Nxd7 {[%clk 0:00:03]}  Kxd7 {[%clk 0:00:15]} 58. Qxc3 {[%clk 0:00:03]}  Qf2 {[%clk 0:00:14]} 59. Qd3+ {[%clk 0:00:03]}  Ke7 {[%clk 0:00:14]} 60. h5 {[%clk 0:00:04]}  Qh2 {[%clk 0:00:14]} 61. Qb5 {[%clk 0:00:04]}  Qxc2+ {[%clk 0:00:13]} 62. Ka1 {[%clk 0:00:04]}  Qc1+ {[%clk 0:00:14]} 63. Ka2 {[%clk 0:00:05]}  Qd2+ {[%clk 0:00:14]} 64. Ka1 {[%clk 0:00:06]}  Qe1+ {[%clk 0:00:15]} 65. Ka2 {[%clk 0:00:06]}  Qf2+ {[%clk 0:00:15]} 66. Ka1 {[%clk 0:00:07]}  Qg1+ {[%clk 0:00:16]} 67. Kb2 {[%clk 0:00:07]}  Qh2+ {[%clk 0:00:16]} 68. Kc3 {[%clk 0:00:08]}  Qg3+ {[%clk 0:00:17]} 69. Kb4 {[%clk 0:00:08]}  Qe1+ {[%clk 0:00:16]} 70. Ka4 {[%clk 0:00:08]}  Qh4+ {[%clk 0:00:14]} 71. Qb4+ {[%clk 0:00:08]}  Qxb4+ {[%clk 0:00:14]} 72. Kxb4 {[%clk 0:00:09]}  Kf6 {[%clk 0:00:14]} 73. Kc5 {[%clk 0:00:09]}  e5 {[%clk 0:00:12]} 74. Kd5 {[%clk 0:00:09]}  Kf5 {[%clk 0:00:13]} 75. h6 {[%clk 0:00:10]}  e4 {[%clk 0:00:13]} 76. h7 {[%clk 0:00:10]} 1-0


[Site "https://www.chess.com"]

[Event "Titled Tuesday Blitz March 08 Early 2022"]
[White "Vogel, Roven"]
[Black "Oparin, Grigoriy"]
[WhiteFideId "12908088"]
[BlackFideId "24125890"]
[WhiteElo "2516"]
[BlackElo "2665"]
[Result "0-1"]
[Round "04"]
[TimeControl "180+1"]
[Date "2022.03.08"]
[WhiteClock "0:01:19"]
[BlackClock "0:02:12"]

1. Nf3 {[%clk 0:02:50]}  Nf6 {[%clk 0:02:59]} 2. c4 {[%clk 0:02:50]}  c5 {[%clk 0:03:00]} 3. Nc3 {[%clk 0:02:50]}  e5 {[%clk 0:03:00]} 4. Nxe5 {[%clk 0:02:49]}  d5 {[%clk 0:03:00]} 5. cxd5 {[%clk 0:02:49]}  Nxd5 {[%clk 0:03:01]} 6. Qa4+ {[%clk 0:02:48]}  Ke7 {[%clk 0:02:48]} 7. Qe4 {[%clk 0:02:43]}  Be6 {[%clk 0:02:34]} 8. Qh4+ {[%clk 0:02:39]}  f6 {[%clk 0:02:30]} 9. Ng6+ {[%clk 0:02:38]}  hxg6 {[%clk 0:02:30]} 10. Qxh8 {[%clk 0:02:38]}  Nc6 {[%clk 0:02:29]} 11. Qh4 {[%clk 0:01:44]}  Ndb4 {[%clk 0:02:28]} 12. Qe4 {[%clk 0:01:38]}  Kf7 {[%clk 0:02:26]} 13. e3 {[%clk 0:01:34]}  Ne5 {[%clk 0:02:21]} 14. d4 {[%clk 0:01:31]}  cxd4 {[%clk 0:02:21]} 15. exd4 {[%clk 0:01:31]}  Qxd4 {[%clk 0:02:21]} 16. Qxb7+ {[%clk 0:01:29]}  Be7 {[%clk 0:02:20]} 17. Be2 {[%clk 0:01:22]}  Ned3+ {[%clk 0:02:13]} 18. Bxd3 {[%clk 0:01:19]}  Nxd3+ {[%clk 0:02:14]} 19. Ke2 {[%clk 0:01:19]}  Qxf2+ {[%clk 0:02:12]} 20. Kxd3 {[%clk 0:01:19]}  Rd8+ {[%clk 0:02:13]} 21. Ke4 {[%clk 0:01:19]}  Bf5# {[%clk 0:02:12]} 0-1


[Site "https://www.chess.com"]

[Event "Titled Tuesday Blitz March 08 Early 2022"]
[White "Aitbayev, Aslan"]
[Black "Dixit, Nikhil"]
[WhiteFideId "13704613"]
[BlackFideId "5059534"]
[WhiteElo "2385"]
[BlackElo "2223"]
[Result "0-1"]
[Round "05"]
[TimeControl "180+1"]
[Date "2022.03.09"]
[WhiteClock "0:00:15"]
[BlackClock "0:00:48"]

1. e4 {[%clk 0:02:57]}  g6 {[%clk 0:02:56]} 2. d4 {[%clk 0:02:57]}  Bg7 {[%clk 0:02:57]} 3. Nf3 {[%clk 0:02:55]}  d6 {[%clk 0:02:54]} 4. Nc3 {[%clk 0:02:55]}  Nf6 {[%clk 0:02:53]} 5. Be2 {[%clk 0:02:54]}  O-O {[%clk 0:02:52]} 6. O-O {[%clk 0:02:55]}  Nc6 {[%clk 0:02:46]} 7. Be3 {[%clk 0:02:44]}  e5 {[%clk 0:02:44]} 8. d5 {[%clk 0:02:34]}  Ne7 {[%clk 0:02:43]} 9. Nd2 {[%clk 0:02:31]}  h5 {[%clk 0:02:40]} 10. h3 {[%clk 0:02:11]}  Nd7 {[%clk 0:02:25]} 11. Nc4 {[%clk 0:02:01]}  f5 {[%clk 0:02:22]} 12. exf5 {[%clk 0:02:01]}  Nxf5 {[%clk 0:02:21]} 13. Bd2 {[%clk 0:01:44]}  Nf6 {[%clk 0:02:19]} 14. Bd3 {[%clk 0:01:43]}  c6 {[%clk 0:02:05]} 15. Bg5 {[%clk 0:01:38]}  cxd5 {[%clk 0:01:47]} 16. Nxd5 {[%clk 0:01:38]}  Be6 {[%clk 0:01:47]} 17. Bxf5 {[%clk 0:01:25]}  gxf5 {[%clk 0:01:42]} 18. Nce3 {[%clk 0:01:01]}  f4 {[%clk 0:01:38]} 19. Nc4 {[%clk 0:00:37]}  b5 {[%clk 0:01:33]} 20. Nxf6+ {[%clk 0:00:27]}  Bxf6 {[%clk 0:01:32]} 21. Bxf6 {[%clk 0:00:27]}  Qxf6 {[%clk 0:01:32]} 22. Nxd6 {[%clk 0:00:27]}  Rad8 {[%clk 0:01:27]} 23. Ne4 {[%clk 0:00:27]}  Qg6 {[%clk 0:01:23]} 24. Qf3 {[%clk 0:00:27]}  Rd4 {[%clk 0:01:13]} 25. Nc3 {[%clk 0:00:16]}  b4 {[%clk 0:01:11]} 26. Nb5 {[%clk 0:00:16]}  Bd5 {[%clk 0:01:07]} 27. Nxd4 {[%clk 0:00:15]}  Bxf3 {[%clk 0:01:07]} 28. Nxf3 {[%clk 0:00:16]}  e4 {[%clk 0:01:07]} 29. Nd4 {[%clk 0:00:15]}  f3 {[%clk 0:01:00]} 30. g3 {[%clk 0:00:15]}  h4 {[%clk 0:01:00]} 31. g4 {[%clk 0:00:15]}  Rf4 {[%clk 0:00:51]} 32. Kh2 {[%clk 0:00:13]}  e3 {[%clk 0:00:45]} 33. fxe3 {[%clk 0:00:12]}  Rxd4 {[%clk 0:00:45]} 34. exd4 {[%clk 0:00:11]}  Qd6+ {[%clk 0:00:46]} 35. Kh1 {[%clk 0:00:11]}  Qg3 {[%clk 0:00:47]} 36. Rxf3 {[%clk 0:00:09]}  Qxf3+ {[%clk 0:00:47]} 37. Kh2 {[%clk 0:00:10]}  Qg3+ {[%clk 0:00:47]} 38. Kh1 {[%clk 0:00:11]}  Qxh3+ {[%clk 0:00:48]} 39. Kg1 {[%clk 0:00:12]}  Qxg4+ {[%clk 0:00:48]} 40. Kf1 {[%clk 0:00:13]}  Qxd4 {[%clk 0:00:48]} 41. Ke2 {[%clk 0:00:12]}  Qxb2 {[%clk 0:00:48]} 42. Rg1+ {[%clk 0:00:13]}  Kf8 {[%clk 0:00:47]} 43. Rf1+ {[%clk 0:00:13]}  Ke8 {[%clk 0:00:48]} 44. Kd3 {[%clk 0:00:13]}  Qc3+ {[%clk 0:00:47]} 45. Ke2 {[%clk 0:00:14]}  Qc4+ {[%clk 0:00:48]} 46. Ke3 {[%clk 0:00:15]}  Qxf1 {[%clk 0:00:48]} 0-1


[Site "https://www.chess.com"]

[Event "Titled Tuesday Blitz March 08 Early 2022"]
[White "Al-Tarboush, Ward"]
[Black "Nakamura, Hikaru"]
[WhiteFideId "7601450"]
[BlackFideId "2016192"]
[WhiteElo "2595"]
[BlackElo "3104"]
[Result "0-1"]
[Round "05"]
[TimeControl "180+1"]
[Date "2022.03.08"]
[WhiteClock "0:00:01"]
[BlackClock "0:00:45"]

1. e4 {[%clk 0:02:55]}  g6 {[%clk 0:02:57]} 2. d4 {[%clk 0:02:52]}  Bg7 {[%clk 0:02:58]} 3. Nf3 {[%clk 0:02:52]}  a6 {[%clk 0:02:57]} 4. c3 {[%clk 0:02:51]}  b5 {[%clk 0:02:57]} 5. Bd3 {[%clk 0:02:50]}  Bb7 {[%clk 0:02:57]} 6. O-O {[%clk 0:02:49]}  d6 {[%clk 0:02:57]} 7. Nbd2 {[%clk 0:02:47]}  Nd7 {[%clk 0:02:57]} 8. Re1 {[%clk 0:02:47]}  e5 {[%clk 0:02:52]} 9. Nf1 {[%clk 0:02:47]}  c5 {[%clk 0:02:51]} 10. Be3 {[%clk 0:02:46]}  Ngf6 {[%clk 0:02:50]} 11. Ng3 {[%clk 0:02:45]}  O-O {[%clk 0:02:50]} 12. h3 {[%clk 0:02:44]}  exd4 {[%clk 0:02:49]} 13. cxd4 {[%clk 0:02:44]}  Re8 {[%clk 0:02:50]} 14. Bf4 {[%clk 0:02:35]}  Nb6 {[%clk 0:02:42]} 15. Rc1 {[%clk 0:02:25]}  cxd4 {[%clk 0:02:38]} 16. Nxd4 {[%clk 0:02:25]}  Nfd7 {[%clk 0:02:37]} 17. Bb1 {[%clk 0:02:21]}  Ne5 {[%clk 0:02:35]} 18. b3 {[%clk 0:02:17]}  Nbd7 {[%clk 0:02:31]} 19. Qd2 {[%clk 0:02:13]}  Nc5 {[%clk 0:02:30]} 20. Bh6 {[%clk 0:02:08]}  Bh8 {[%clk 0:02:19]} 21. Bg5 {[%clk 0:01:51]}  Qd7 {[%clk 0:02:17]} 22. f4 {[%clk 0:01:40]}  Ned3 {[%clk 0:02:14]} 23. Bxd3 {[%clk 0:01:38]}  Bxd4+ {[%clk 0:02:14]} 24. Kh2 {[%clk 0:01:38]}  Rac8 {[%clk 0:01:54]} 25. Bb1 {[%clk 0:01:38]}  Bg7 {[%clk 0:01:52]} 26. Rcd1 {[%clk 0:01:23]}  Ne6 {[%clk 0:01:42]} 27. f5 {[%clk 0:01:10]}  Nxg5 {[%clk 0:01:39]} 28. Qxg5 {[%clk 0:01:11]}  Be5 {[%clk 0:01:39]} 29. Kh1 {[%clk 0:01:03]}  Qe7 {[%clk 0:01:38]} 30. Qg4 {[%clk 0:00:56]}  Kh8 {[%clk 0:01:37]} 31. Ne2 {[%clk 0:00:52]}  gxf5 {[%clk 0:01:32]} 32. Qxf5 {[%clk 0:00:49]}  Rg8 {[%clk 0:01:31]} 33. Rf1 {[%clk 0:00:44]}  Rg7 {[%clk 0:01:29]} 34. Rd2 {[%clk 0:00:30]}  Rcg8 {[%clk 0:01:26]} 35. Ng1 {[%clk 0:00:25]}  Bc8 {[%clk 0:01:22]} 36. Qh5 {[%clk 0:00:23]}  Bb7 {[%clk 0:01:04]} 37. Rdf2 {[%clk 0:00:20]}  f6 {[%clk 0:01:04]} 38. Nf3 {[%clk 0:00:20]}  Bg3 {[%clk 0:01:04]} 39. Re2 {[%clk 0:00:19]}  Bc8 {[%clk 0:00:55]} 40. Nd4 {[%clk 0:00:18]}  Be5 {[%clk 0:00:53]} 41. Nf5 {[%clk 0:00:18]}  Bxf5 {[%clk 0:00:53]} 42. exf5 {[%clk 0:00:19]}  Rg5 {[%clk 0:00:51]} 43. Qf3 {[%clk 0:00:19]}  Qg7 {[%clk 0:00:50]} 44. g4 {[%clk 0:00:15]}  h5 {[%clk 0:00:48]} 45. Rg2 {[%clk 0:00:01]}  Qh6 {[%clk 0:00:47]} 46. Kg1 {[%clk 0:00:01]}  Bd4+ {[%clk 0:00:45]} 47. Kh2 {[%clk 0:00:01]}  hxg4 {[%clk 0:00:45]} 48. Qg3 {[%clk 0:00:01]}  Be5 {[%clk 0:00:45]} 49. Rf4 {[%clk 0:00:01]}  Bxf4 {[%clk 0:00:45]} 0-1


[Site "https://www.chess.com"]

[Event "Titled Tuesday Blitz March 08 Early 2022"]
[White "Antonio, Jorge Carlos"]
[Black "Krylov, Ivan"]
[WhiteFideId "113190"]
[BlackFideId "24128066"]
[WhiteElo "2247"]
[BlackElo "2258"]
[Result "1/2-1/2"]
[Round "05"]
[TimeControl "180+1"]
[Date "2022.03.09"]
[WhiteClock "0:01:06"]
[BlackClock "0:01:39"]

1. e4 {[%clk 0:03:00]}  c6 {[%clk 0:02:59]} 2. f4 {[%clk 0:02:53]}  d5 {[%clk 0:03:00]} 3. e5 {[%clk 0:02:52]}  c5 {[%clk 0:02:58]} 4. c3 {[%clk 0:02:45]}  Nc6 {[%clk 0:02:58]} 5. Nf3 {[%clk 0:02:43]}  Bg4 {[%clk 0:02:56]} 6. Be2 {[%clk 0:02:29]}  e6 {[%clk 0:02:53]} 7. d4 {[%clk 0:02:24]}  Qb6 {[%clk 0:02:44]} 8. Nbd2 {[%clk 0:02:20]}  cxd4 {[%clk 0:02:39]} 9. Nxd4 {[%clk 0:02:15]}  Bxe2 {[%clk 0:02:32]} 10. Nxe2 {[%clk 0:02:10]}  Bc5 {[%clk 0:02:25]} 11. Rf1 {[%clk 0:02:01]}  Nge7 {[%clk 0:02:21]} 12. Nb3 {[%clk 0:02:00]}  Be3 {[%clk 0:02:17]} 13. Bxe3 {[%clk 0:01:55]}  Qxe3 {[%clk 0:02:17]} 14. Qd2 {[%clk 0:01:55]}  Qxd2+ {[%clk 0:02:12]} 15. Kxd2 {[%clk 0:01:54]}  h5 {[%clk 0:02:05]} 16. Ned4 {[%clk 0:01:49]}  Nxd4 {[%clk 0:02:02]} 17. Nxd4 {[%clk 0:01:46]}  Nc6 {[%clk 0:02:01]} 18. f5 {[%clk 0:01:42]}  Ke7 {[%clk 0:01:52]} 19. Rae1 {[%clk 0:01:34]}  h4 {[%clk 0:01:43]} 20. h3 {[%clk 0:01:29]}  Kd7 {[%clk 0:01:42]} 21. fxe6+ {[%clk 0:01:25]}  fxe6 {[%clk 0:01:41]} 22. Rf7+ {[%clk 0:01:20]}  Ne7 {[%clk 0:01:40]} 23. Rxg7 {[%clk 0:01:19]}  Rag8 {[%clk 0:01:38]} 24. Rxg8 {[%clk 0:01:12]}  Rxg8 {[%clk 0:01:39]} 25. Re2 {[%clk 0:01:06]} 1/2-1/2


[Site "https://www.chess.com"]

[Event "Titled Tuesday Blitz March 08 Early 2022"]
[White "Atzl, Florian"]
[Black "Manukian, Artak"]
[WhiteFideId "1635891"]
[BlackFideId "13301373"]
[WhiteElo "2085"]
[BlackElo "2499"]
[Result "0-1"]
[Round "05"]
[TimeControl "180+1"]
[Date "2022.03.09"]
[WhiteClock "0:00:12"]
[BlackClock "0:00:49"]

1. e4 {[%clk 0:03:00]}  c6 {[%clk 0:03:00]} 2. d4 {[%clk 0:02:59]}  d5 {[%clk 0:02:59]} 3. Nd2 {[%clk 0:03:00]}  dxe4 {[%clk 0:02:59]} 4. Nxe4 {[%clk 0:03:01]}  Nf6 {[%clk 0:03:00]} 5. Nxf6+ {[%clk 0:03:01]}  exf6 {[%clk 0:03:01]} 6. c3 {[%clk 0:03:00]}  Bd6 {[%clk 0:03:01]} 7. Bd3 {[%clk 0:03:00]}  Na6 {[%clk 0:03:00]} 8. Ne2 {[%clk 0:02:55]}  Nc7 {[%clk 0:02:59]} 9. O-O {[%clk 0:02:50]}  Nd5 {[%clk 0:02:59]} 10. c4 {[%clk 0:02:40]}  Ne7 {[%clk 0:02:58]} 11. Ng3 {[%clk 0:02:29]}  O-O {[%clk 0:02:54]} 12. Bc2 {[%clk 0:02:22]}  Re8 {[%clk 0:02:43]} 13. Qd3 {[%clk 0:02:09]}  Ng6 {[%clk 0:02:43]} 14. Bd2 {[%clk 0:02:04]}  Bd7 {[%clk 0:02:34]} 15. Rfe1 {[%clk 0:02:01]}  Qc7 {[%clk 0:02:34]} 16. Rxe8+ {[%clk 0:01:56]}  Rxe8 {[%clk 0:02:33]} 17. Re1 {[%clk 0:01:56]}  Qd8 {[%clk 0:02:05]} 18. c5 {[%clk 0:01:39]}  Bxg3 {[%clk 0:02:02]} 19. Qxg3 {[%clk 0:01:33]}  Rxe1+ {[%clk 0:02:00]} 20. Bxe1 {[%clk 0:01:34]}  Be6 {[%clk 0:01:59]} 21. Bc3 {[%clk 0:01:11]}  Bxa2 {[%clk 0:01:43]} 22. b3 {[%clk 0:01:07]}  Qd5 {[%clk 0:01:42]} 23. Bb2 {[%clk 0:01:03]}  a5 {[%clk 0:01:34]} 24. Qc3 {[%clk 0:01:00]}  a4 {[%clk 0:01:31]} 25. bxa4 {[%clk 0:01:01]}  Nf4 {[%clk 0:01:29]} 26. Qf3 {[%clk 0:00:44]}  Qxf3 {[%clk 0:01:17]} 27. gxf3 {[%clk 0:00:45]}  Bd5 {[%clk 0:01:12]} 28. Be4 {[%clk 0:00:45]}  g6 {[%clk 0:01:11]} 29. Kf1 {[%clk 0:00:30]}  f5 {[%clk 0:01:08]} 30. Bxd5 {[%clk 0:00:28]}  Nxd5 {[%clk 0:01:08]} 31. Ke2 {[%clk 0:00:25]}  g5 {[%clk 0:01:06]} 32. Bc1 {[%clk 0:00:20]}  f6 {[%clk 0:01:06]} 33. Bd2 {[%clk 0:00:20]}  Kf7 {[%clk 0:01:05]} 34. Kd3 {[%clk 0:00:21]}  h5 {[%clk 0:01:01]} 35. Kc4 {[%clk 0:00:20]}  g4 {[%clk 0:01:01]} 36. fxg4 {[%clk 0:00:19]}  hxg4 {[%clk 0:01:02]} 37. Kd3 {[%clk 0:00:19]}  Ke6 {[%clk 0:00:59]} 38. Kc4 {[%clk 0:00:19]}  f4 {[%clk 0:00:59]} 39. Kd3 {[%clk 0:00:19]}  f5 {[%clk 0:00:57]} 40. a5 {[%clk 0:00:19]}  f3 {[%clk 0:00:51]} 41. Kc4 {[%clk 0:00:17]}  f4 {[%clk 0:00:50]} 42. Kd3 {[%clk 0:00:17]}  Kf5 {[%clk 0:00:50]} 43. Kc4 {[%clk 0:00:15]}  g3 {[%clk 0:00:49]} 44. hxg3 {[%clk 0:00:15]}  fxg3 {[%clk 0:00:49]} 45. Be1 {[%clk 0:00:12]}  g2 {[%clk 0:00:49]} 0-1


[Site "https://www.chess.com"]

[Event "Titled Tuesday Blitz March 08 Early 2022"]
[White "Bashirli, Nail"]
[Black "Neiksans, Arturs"]
[WhiteFideId "13406809"]
[BlackFideId "11601388"]
[WhiteElo "2333"]
[BlackElo "2447"]
[Result "0-1"]
[Round "05"]
[TimeControl "180+1"]
[Date "2022.03.08"]
[WhiteClock "0:00:08"]
[BlackClock "0:00:06"]

1. e4 {[%clk 0:03:00]}  c5 {[%clk 0:02:59]} 2. Nc3 {[%clk 0:03:00]}  e6 {[%clk 0:02:58]} 3. g3 {[%clk 0:02:59]}  d5 {[%clk 0:02:58]} 4. Bg2 {[%clk 0:02:59]}  dxe4 {[%clk 0:02:55]} 5. Nxe4 {[%clk 0:03:00]}  Nc6 {[%clk 0:02:50]} 6. Ne2 {[%clk 0:03:00]}  Be7 {[%clk 0:02:50]} 7. O-O {[%clk 0:02:59]}  Nf6 {[%clk 0:02:50]} 8. b3 {[%clk 0:02:55]}  Nxe4 {[%clk 0:02:47]} 9. Bxe4 {[%clk 0:02:56]}  Bf6 {[%clk 0:02:46]} 10. Rb1 {[%clk 0:02:55]}  Qc7 {[%clk 0:02:45]} 11. Nc3 {[%clk 0:02:54]}  O-O {[%clk 0:02:42]} 12. Bb2 {[%clk 0:02:54]}  Nd4 {[%clk 0:02:40]} 13. Ne2 {[%clk 0:02:48]}  Bd7 {[%clk 0:02:28]} 14. Nxd4 {[%clk 0:02:43]}  cxd4 {[%clk 0:02:28]} 15. Qf3 {[%clk 0:02:38]}  Bc6 {[%clk 0:02:16]} 16. c4 {[%clk 0:02:38]}  dxc3 {[%clk 0:02:13]} 17. dxc3 {[%clk 0:02:33]}  Bxe4 {[%clk 0:02:12]} 18. Qxe4 {[%clk 0:02:34]}  Rfd8 {[%clk 0:02:07]} 19. Rfd1 {[%clk 0:02:32]}  Rac8 {[%clk 0:02:00]} 20. Qe2 {[%clk 0:02:27]}  Qe5 {[%clk 0:01:41]} 21. Qf3 {[%clk 0:02:15]}  Qc7 {[%clk 0:01:31]} 22. c4 {[%clk 0:02:13]}  Rxd1+ {[%clk 0:01:27]} 23. Qxd1 {[%clk 0:02:11]}  Rd8 {[%clk 0:01:27]} 24. Qe2 {[%clk 0:02:01]}  Bxb2 {[%clk 0:01:26]} 25. Rxb2 {[%clk 0:02:02]}  Qd6 {[%clk 0:01:25]} 26. Rc2 {[%clk 0:02:00]}  b6 {[%clk 0:01:24]} 27. Qf3 {[%clk 0:01:59]}  g6 {[%clk 0:01:20]} 28. Kg2 {[%clk 0:01:59]}  Rd7 {[%clk 0:01:18]} 29. h4 {[%clk 0:01:58]}  h5 {[%clk 0:01:17]} 30. Qe4 {[%clk 0:01:54]}  Qc5 {[%clk 0:01:14]} 31. Qa8+ {[%clk 0:01:52]}  Kg7 {[%clk 0:01:13]} 32. Qf3 {[%clk 0:01:53]}  a5 {[%clk 0:01:11]} 33. Re2 {[%clk 0:01:52]}  e5 {[%clk 0:01:05]} 34. Qc3 {[%clk 0:01:36]}  Rd4 {[%clk 0:01:04]} 35. Qe3 {[%clk 0:01:30]}  Qc6+ {[%clk 0:00:53]} 36. Kh2 {[%clk 0:01:28]}  f6 {[%clk 0:00:51]} 37. Re1 {[%clk 0:01:24]}  Qd6 {[%clk 0:00:50]} 38. Re2 {[%clk 0:01:23]}  Rd1 {[%clk 0:00:44]} 39. Qe4 {[%clk 0:01:20]}  Rc1 {[%clk 0:00:34]} 40. Qb7+ {[%clk 0:01:18]}  Kh6 {[%clk 0:00:34]} 41. Qc8 {[%clk 0:00:54]}  Kg7 {[%clk 0:00:29]} 42. Qb7+ {[%clk 0:00:46]}  Kg8 {[%clk 0:00:28]} 43. Qa8+ {[%clk 0:00:46]}  Kf7 {[%clk 0:00:28]} 44. Qb7+ {[%clk 0:00:44]}  Ke8 {[%clk 0:00:25]} 45. Qc8+ {[%clk 0:00:35]}  Ke7 {[%clk 0:00:23]} 46. Qb7+ {[%clk 0:00:26]}  Qd7 {[%clk 0:00:24]} 47. Qxd7+ {[%clk 0:00:10]}  Kxd7 {[%clk 0:00:23]} 48. Kg2 {[%clk 0:00:10]}  Kc6 {[%clk 0:00:18]} 49. Rd2 {[%clk 0:00:10]}  Ra1 {[%clk 0:00:17]} 50. Kf3 {[%clk 0:00:09]}  Kc5 {[%clk 0:00:17]} 51. Ke4 {[%clk 0:00:08]}  Re1+ {[%clk 0:00:16]} 52. Kf3 {[%clk 0:00:08]}  f5 {[%clk 0:00:10]} 53. Rd5+ {[%clk 0:00:09]}  Kc6 {[%clk 0:00:11]} 54. Kg2 {[%clk 0:00:08]}  e4 {[%clk 0:00:10]} 55. Re5 {[%clk 0:00:08]}  Kd6 {[%clk 0:00:07]} 56. Rd5+ {[%clk 0:00:08]}  Kc7 {[%clk 0:00:07]} 57. a3 {[%clk 0:00:07]}  Re2 {[%clk 0:00:07]} 58. Re5 {[%clk 0:00:06]}  Rb2 {[%clk 0:00:06]} 59. c5 {[%clk 0:00:03]}  bxc5 {[%clk 0:00:06]} 60. Rxc5+ {[%clk 0:00:04]}  Kb6 {[%clk 0:00:06]} 61. Re5 {[%clk 0:00:04]}  Rxb3 {[%clk 0:00:06]} 62. a4 {[%clk 0:00:05]}  Ra3 {[%clk 0:00:06]} 63. Re6+ {[%clk 0:00:05]}  Kb7 {[%clk 0:00:05]} 64. Rxg6 {[%clk 0:00:06]}  Rxa4 {[%clk 0:00:06]} 65. Rg8 {[%clk 0:00:06]}  Rb4 {[%clk 0:00:05]} 66. Rg7+ {[%clk 0:00:06]}  Ka6 {[%clk 0:00:05]} 67. Rg6+ {[%clk 0:00:07]}  Rb6 {[%clk 0:00:05]} 68. Rg8 {[%clk 0:00:07]}  a4 {[%clk 0:00:05]} 69. Ra8+ {[%clk 0:00:06]}  Kb5 {[%clk 0:00:06]} 70. Rd8 {[%clk 0:00:06]}  Ra6 {[%clk 0:00:06]} 71. Rd5+ {[%clk 0:00:06]}  Kc4 {[%clk 0:00:06]} 72. Rd1 {[%clk 0:00:07]}  a3 {[%clk 0:00:07]} 73. Rc1+ {[%clk 0:00:07]}  Kd3 {[%clk 0:00:06]} 74. Rd1+ {[%clk 0:00:08]}  Kc2 {[%clk 0:00:07]} 75. Rd6 {[%clk 0:00:08]}  Rxd6 {[%clk 0:00:06]} 0-1


[Site "https://www.chess.com"]